[Event "Early-Titled-Tuesday-Blitz-September-12-2023"]
[Site "Chess.com"]
[Date "2023.09.12"]
[Round "5"]
[White "lamomiajunior"]
[Black "BatboldNyamsuren0919"]
[Result "1-0"]
[WhiteElo "2716"]
[BlackElo "2482"]
[TimeControl "180+1"]
[EndTime "8:55:08 PDT"]
[Termination "lamomiajunior won on time"]

1. d4 {[%clk 0:03:00.9]} 1... Nf6 {[%clk 0:02:59.2]} 2. Nc3 {[%clk 0:03:01.5]}
2... g6 {[%clk 0:02:57.8]} 3. e4 {[%clk 0:03:01.6]} 3... d6 {[%clk 0:02:58.2]}
4. Be3 {[%clk 0:03:01.8]} 4... Bg7 {[%clk 0:02:58.6]} 5. Qd2 {[%clk 0:03:02.4]}
5... Ng4 {[%clk 0:02:58.6]} 6. Bg5 {[%clk 0:03:02.6]} 6... h6 {[%clk 0:02:58.6]}
7. Bh4 {[%clk 0:03:03.3]} 7... Nc6 {[%clk 0:02:57.9]} 8. f3 {[%clk 0:03:03.3]}
8... Nf6 {[%clk 0:02:55]} 9. Nge2 {[%clk 0:03:02.2]} 9... a6 {[%clk 0:02:54.3]}
10. O-O-O {[%clk 0:03:01.9]} 10... b5 {[%clk 0:02:54.3]} 11. Bf2 {[%clk
0:02:50.6]} 11... Bb7 {[%clk 0:02:53.8]} 12. Be3 {[%clk 0:02:47.5]} 12... Na5
{[%clk 0:02:51.4]} 13. Ng3 {[%clk 0:02:39]} 13... h5 {[%clk 0:02:50.3]} 14. h4
{[%clk 0:02:38.9]} 14... Qd7 {[%clk 0:02:27.4]} 15. Bd3 {[%clk 0:02:34.3]} 15...
b4 {[%clk 0:02:26.8]} 16. Nce2 {[%clk 0:02:34.6]} 16... Qa4 {[%clk 0:02:26.5]}
17. Kb1 {[%clk 0:02:33.6]} 17... Nd7 {[%clk 0:02:20.3]} 18. Nc1 {[%clk 0:02:04]}
18... Nb6 {[%clk 0:02:07.7]} 19. Qe2 {[%clk 0:01:53.9]} 19... Rc8 {[%clk
0:01:39.4]} 20. Nb3 {[%clk 0:01:31.1]} 20... Nxb3 {[%clk 0:01:26.3]} 21. axb3
{[%clk 0:01:31.3]} 21... Qa5 {[%clk 0:01:23.8]} 22. f4 {[%clk 0:01:09.2]} 22...
O-O {[%clk 0:00:55.6]} 23. f5 {[%clk 0:01:07.5]} 23... c5 {[%clk 0:00:55.3]} 24.
dxc5 {[%clk 0:01:04.7]} 24... dxc5 {[%clk 0:00:56.2]} 25. fxg6 {[%clk
0:01:04.4]} 25... fxg6 {[%clk 0:00:55.9]} 26. Rhf1 {[%clk 0:00:52.5]} 26... Rxf1
{[%clk 0:00:45.5]} 27. Rxf1 {[%clk 0:00:47.6]} 27... Bc6 {[%clk 0:00:35.9]} 28.
Bc4+ {[%clk 0:00:46.3]} 28... Nxc4 {[%clk 0:00:28.3]} 29. Qxc4+ {[%clk
0:00:47.2]} 29... Kh7 {[%clk 0:00:19.1]} 30. Rf7 {[%clk 0:00:46]} 30... Qb5
{[%clk 0:00:14.4]} 31. Qe6 {[%clk 0:00:41.7]} 31... Rf8 {[%clk 0:00:13.9]} 32.
Qxe7 {[%clk 0:00:29.6]} 32... Rxf7 {[%clk 0:00:13.1]} 33. Qxf7 {[%clk
0:00:30.5]} 33... Be8 {[%clk 0:00:11.9]} 34. Qd5 {[%clk 0:00:29.4]} 34... Bc6
{[%clk 0:00:11.6]} 35. Qd6 {[%clk 0:00:25.7]} 35... Qb7 {[%clk 0:00:10.3]} 36.
e5 {[%clk 0:00:20.9]} 36... Bxg2 {[%clk 0:00:08.7]} 37. Bxc5 {[%clk 0:00:20.8]}
37... Qf3 {[%clk 0:00:08.1]} 38. e6 {[%clk 0:00:21.1]} 38... Bh3 {[%clk
0:00:06.1]} 39. e7 {[%clk 0:00:20.5]} 39... Qf7 {[%clk 0:00:05]} 40. Qd8 {[%clk
0:00:19.5]} 1-0

[Event "Early-Titled-Tuesday-Blitz-September-12-2023"]
[Site "Chess.com"]
[Date "2023.09.12"]
[Round "5"]
[White "Maus7"]
[Black "Abund"]
[Result "0-1"]
[WhiteElo "2493"]
[BlackElo "2740"]
[TimeControl "180+1"]
[EndTime "8:55:09 PDT"]
[Termination "Abund won on time"]

1. e4 {[%clk 0:03:00.9]} 1... e5 {[%clk 0:03:00.2]} 2. Nf3 {[%clk 0:03:01.3]}
2... Nc6 {[%clk 0:03:00.8]} 3. Bb5 {[%clk 0:03:01.8]} 3... Nf6 {[%clk
0:03:01.5]} 4. d3 {[%clk 0:03:01.1]} 4... Bc5 {[%clk 0:03:01.3]} 5. Bxc6 {[%clk
0:03:01.4]} 5... dxc6 {[%clk 0:03:01.7]} 6. Nbd2 {[%clk 0:03:01.9]} 6... Be6
{[%clk 0:02:54.5]} 7. O-O {[%clk 0:03:01.5]} 7... Bd6 {[%clk 0:02:49.4]} 8. d4
{[%clk 0:02:54.2]} 8... Nd7 {[%clk 0:02:47.4]} 9. dxe5 {[%clk 0:02:54.7]} 9...
Nxe5 {[%clk 0:02:45.5]} 10. Nxe5 {[%clk 0:02:55]} 10... Bxe5 {[%clk 0:02:45.8]}
11. f4 {[%clk 0:02:55.7]} 11... Bd4+ {[%clk 0:02:43.6]} 12. Kh1 {[%clk
0:02:56.3]} 12... f5 {[%clk 0:02:44.2]} 13. Qh5+ {[%clk 0:02:54]} 13... g6
{[%clk 0:02:42.6]} 14. Qe2 {[%clk 0:02:54.4]} 14... Qe7 {[%clk 0:02:24.9]} 15.
Re1 {[%clk 0:02:32.3]} 15... Bf6 {[%clk 0:02:04.3]} 16. Nf3 {[%clk 0:01:50.6]}
16... Bf7 {[%clk 0:01:00.4]} 17. e5 {[%clk 0:01:44]} 17... Bg7 {[%clk
0:00:57.5]} 18. a4 {[%clk 0:00:55.5]} 18... O-O-O {[%clk 0:00:40]} 19. Be3
{[%clk 0:00:47.8]} 19... Kb8 {[%clk 0:00:39.9]} 20. c3 {[%clk 0:00:33.2]} 20...
Bd5 {[%clk 0:00:37.2]} 21. b4 {[%clk 0:00:27.2]} 21... h6 {[%clk 0:00:30.5]} 22.
a5 {[%clk 0:00:19.5]} 22... Qf7 {[%clk 0:00:23.8]} 23. Kg1 {[%clk 0:00:14.8]}
23... g5 {[%clk 0:00:17.9]} 24. fxg5 {[%clk 0:00:14.5]} 24... f4 {[%clk
0:00:13.4]} 25. Bf2 {[%clk 0:00:10.6]} 25... Rde8 {[%clk 0:00:12.2]} 26. Qd3
{[%clk 0:00:05.2]} 26... hxg5 {[%clk 0:00:10.7]} 27. Nxg5 {[%clk 0:00:06.1]}
27... Qh5 {[%clk 0:00:10.2]} 28. Nh3 {[%clk 0:00:06.1]} 28... f3 {[%clk
0:00:07.5]} 29. Bg3 {[%clk 0:00:03]} 29... Bh6 {[%clk 0:00:04.8]} 30. gxf3
{[%clk 0:00:02.1]} 30... Qxh3 {[%clk 0:00:04.6]} 31. c4 {[%clk 0:00:02.2]} 31...
Be6 {[%clk 0:00:03.7]} 32. Re2 {[%clk 0:00:02]} 32... Rd8 {[%clk 0:00:03.6]} 33.
Qc3 {[%clk 0:00:01.3]} 33... Rdg8 {[%clk 0:00:03.7]} 34. b5 {[%clk 0:00:01.1]}
34... Bf4 {[%clk 0:00:03.3]} 0-1

[Event "Early-Titled-Tuesday-Blitz-September-12-2023"]
[Site "Chess.com"]
[Date "2023.09.12"]
[Round "5"]
[White "DKmirl"]
[Black "Casper"]
[Result "0-1"]
[WhiteElo "2266"]
[BlackElo "2440"]
[TimeControl "180+1"]
[EndTime "8:55:10 PDT"]
[Termination "Casper won on time"]

1. d4 {[%clk 0:02:51.8]} 1... Nf6 {[%clk 0:03:00.2]} 2. Nf3 {[%clk 0:02:15.9]}
2... g6 {[%clk 0:03:01.1]} 3. g3 {[%clk 0:02:16.3]} 3... Bg7 {[%clk 0:03:01.2]}
4. Bg2 {[%clk 0:02:16.6]} 4... O-O {[%clk 0:03:01.9]} 5. O-O {[%clk 0:02:17.3]}
5... b6 {[%clk 0:03:02.5]} 6. c4 {[%clk 0:02:12.3]} 6... Bb7 {[%clk 0:03:02.4]}
7. Nc3 {[%clk 0:02:11.9]} 7... d6 {[%clk 0:03:02.4]} 8. Qc2 {[%clk 0:02:05]}
8... Nc6 {[%clk 0:02:54.5]} 9. a3 {[%clk 0:02:04.6]} 9... e5 {[%clk 0:02:53.7]}
10. dxe5 {[%clk 0:02:00.2]} 10... Nxe5 {[%clk 0:02:43.2]} 11. Nxe5 {[%clk
0:01:57.5]} 11... Bxg2 {[%clk 0:02:43]} 12. Nxf7 {[%clk 0:01:55.7]} 12... Rxf7
{[%clk 0:02:36]} 13. Kxg2 {[%clk 0:01:55.5]} 13... Qd7 {[%clk 0:02:36.5]} 14.
Bg5 {[%clk 0:01:50.1]} 14... Qc6+ {[%clk 0:02:32.4]} 15. Kg1 {[%clk 0:01:47.7]}
15... Qxc4 {[%clk 0:02:31.8]} 16. Rac1 {[%clk 0:01:38.4]} 16... Raf8 {[%clk
0:02:22.9]} 17. b3 {[%clk 0:01:30.4]} 17... Qg4 {[%clk 0:02:17.4]} 18. Bxf6
{[%clk 0:01:24.3]} 18... Bxf6 {[%clk 0:02:15.4]} 19. Nd5 {[%clk 0:01:19.8]}
19... Bd4 {[%clk 0:01:29.1]} 20. e3 {[%clk 0:01:13.4]} 20... Bc5 {[%clk
0:00:55.7]} 21. b4 {[%clk 0:01:11.5]} 21... Qf3 {[%clk 0:00:48.6]} 22. Nf4
{[%clk 0:00:30]} 22... Bxe3 {[%clk 0:00:32.3]} 23. fxe3 {[%clk 0:00:30.3]} 23...
Qxe3+ {[%clk 0:00:32.3]} 24. Qf2 {[%clk 0:00:30.8]} 24... Qxa3 {[%clk
0:00:30.3]} 25. Qd4 {[%clk 0:00:20.3]} 25... c5 {[%clk 0:00:18.6]} 26. bxc5
{[%clk 0:00:19.2]} 26... dxc5 {[%clk 0:00:18.9]} 27. Qe5 {[%clk 0:00:17]} 27...
Qa4 {[%clk 0:00:09.6]} 28. Qe6 {[%clk 0:00:08.8]} 28... Qd4+ {[%clk 0:00:08.9]}
29. Kg2 {[%clk 0:00:08.4]} 29... Kg7 {[%clk 0:00:04.7]} 30. Rcd1 {[%clk
0:00:08.1]} 30... Qb2+ {[%clk 0:00:03.5]} 31. Rf2 {[%clk 0:00:08.3]} 31... Qf6
{[%clk 0:00:02.6]} 32. Qxf6+ {[%clk 0:00:04.4]} 32... Rxf6 {[%clk 0:00:03.5]}
33. Rd7+ {[%clk 0:00:03.1]} 33... R8f7 {[%clk 0:00:03.6]} 34. Ne6+ {[%clk
0:00:02.3]} 34... Kg8 {[%clk 0:00:02.7]} 0-1

[Event "Early-Titled-Tuesday-Blitz-September-12-2023"]
[Site "Chess.com"]
[Date "2023.09.12"]
[Round "5"]
[White "Durarbayli"]
[Black "mishanick"]
[Result "1-0"]
[WhiteElo "2909"]
[BlackElo "3070"]
[TimeControl "180+1"]
[EndTime "8:55:11 PDT"]
[Termination "Durarbayli won by checkmate"]

1. e4 {[%clk 0:03:00.9]} 1... c5 {[%clk 0:03:00.6]} 2. Nf3 {[%clk 0:03:01.4]}
2... e6 {[%clk 0:03:01.4]} 3. d4 {[%clk 0:03:01.4]} 3... cxd4 {[%clk 0:03:01.7]}
4. Nxd4 {[%clk 0:03:02.3]} 4... Nf6 {[%clk 0:03:01.5]} 5. Nc3 {[%clk 0:03:02.3]}
5... Nc6 {[%clk 0:03:01.9]} 6. Nxc6 {[%clk 0:03:02.5]} 6... bxc6 {[%clk
0:03:02.5]} 7. e5 {[%clk 0:03:03.4]} 7... Nd5 {[%clk 0:03:02.9]} 8. Ne4 {[%clk
0:03:04.1]} 8... Qc7 {[%clk 0:03:03.2]} 9. f4 {[%clk 0:03:03.7]} 9... Qb6 {[%clk
0:03:03.7]} 10. c4 {[%clk 0:03:03.5]} 10... Bb4+ {[%clk 0:03:03.4]} 11. Ke2
{[%clk 0:03:02.5]} 11... f5 {[%clk 0:03:04]} 12. Nf2 {[%clk 0:03:02.1]} 12...
Qa6 {[%clk 0:03:03.9]} 13. Kf3 {[%clk 0:02:39.9]} 13... Nc7 {[%clk 0:03:04]} 14.
h4 {[%clk 0:02:32.4]} 14... Be7 {[%clk 0:03:03.8]} 15. Kg3 {[%clk 0:02:32.1]}
15... Bb7 {[%clk 0:03:00.7]} 16. Be3 {[%clk 0:02:18.2]} 16... c5 {[%clk
0:03:00.5]} 17. Qh5+ {[%clk 0:02:18.2]} 17... g6 {[%clk 0:03:00.2]} 18. Qe2
{[%clk 0:02:15.6]} 18... O-O-O {[%clk 0:02:53.5]} 19. Nd3 {[%clk 0:02:02.6]}
19... Qc6 {[%clk 0:02:47.4]} 20. Qf2 {[%clk 0:01:52]} 20... d6 {[%clk
0:02:13.6]} 21. exd6 {[%clk 0:01:11.1]} 21... Bxd6 {[%clk 0:02:14.5]} 22. Bxc5
{[%clk 0:01:10.1]} 22... Bxc5 {[%clk 0:02:02.4]} 23. Nxc5 {[%clk 0:01:11]} 23...
e5 {[%clk 0:02:01]} 24. fxe5 {[%clk 0:01:04.1]} 24... Rhe8 {[%clk 0:01:34.1]}
25. Re1 {[%clk 0:01:02.4]} 25... f4+ {[%clk 0:01:29.3]} 26. Kh2 {[%clk
0:01:02.6]} 26... Qb6 {[%clk 0:01:28.2]} 27. Kg1 {[%clk 0:00:57.6]} 27... f3
{[%clk 0:00:54.6]} 28. Nxb7 {[%clk 0:00:55]} 28... Qxb7 {[%clk 0:00:45]} 29. Rh3
{[%clk 0:00:49.9]} 29... Ne6 {[%clk 0:00:28.2]} 30. Rxf3 {[%clk 0:00:48]} 30...
Nd4 {[%clk 0:00:25.3]} 31. Rf7 {[%clk 0:00:36]} 31... Qb6 {[%clk 0:00:23]} 32.
c5 {[%clk 0:00:21.5]} 32... Qxc5 {[%clk 0:00:22.8]} 33. Ba6+ {[%clk 0:00:14.4]}
33... Kb8 {[%clk 0:00:21.8]} 34. Rb7+ {[%clk 0:00:10]} 34... Ka8 {[%clk
0:00:21.7]} 35. Rxh7 {[%clk 0:00:10.6]} 35... Rxe5 {[%clk 0:00:06.7]} 36. Rxe5
{[%clk 0:00:10.5]} 36... Qxe5 {[%clk 0:00:07.6]} 37. Qf7 {[%clk 0:00:07.9]}
37... Qe3+ {[%clk 0:00:02.8]} 38. Kh1 {[%clk 0:00:07.1]} 38... Qe1+ {[%clk
0:00:02.8]} 39. Bf1 {[%clk 0:00:06.4]} 39... Qe6 {[%clk 0:00:01.1]} 40. Qb7#
{[%clk 0:00:05.8]} 1-0

[Event "Early-Titled-Tuesday-Blitz-September-12-2023"]
[Site "Chess.com"]
[Date "2023.09.12"]
[Round "5"]
[White "GianmarcoVaR"]
[Black "Cayse"]
[Result "1-0"]
[WhiteElo "2627"]
[BlackElo "2849"]
[TimeControl "180+1"]
[EndTime "8:55:13 PDT"]
[Termination "GianmarcoVaR won on time"]

1. Nf3 {[%clk 0:02:34.1]} 1... b6 {[%clk 0:02:58]} 2. g3 {[%clk 0:02:28.1]} 2...
Bb7 {[%clk 0:02:58.9]} 3. Bg2 {[%clk 0:02:27.3]} 3... e5 {[%clk 0:02:58.7]} 4.
d3 {[%clk 0:02:22.6]} 4... g6 {[%clk 0:02:58.3]} 5. O-O {[%clk 0:02:10.9]} 5...
Bg7 {[%clk 0:02:58.2]} 6. c4 {[%clk 0:02:09.9]} 6... Ne7 {[%clk 0:02:57.4]} 7.
Nc3 {[%clk 0:02:08]} 7... O-O {[%clk 0:02:57.1]} 8. Bd2 {[%clk 0:01:49.9]} 8...
c5 {[%clk 0:02:54.1]} 9. e4 {[%clk 0:01:27.5]} 9... d6 {[%clk 0:02:52.7]} 10. a3
{[%clk 0:01:25.6]} 10... Nbc6 {[%clk 0:02:51.9]} 11. Nd5 {[%clk 0:01:23.7]}
11... f5 {[%clk 0:02:46.5]} 12. b4 {[%clk 0:01:21.1]} 12... Qd7 {[%clk
0:02:33.9]} 13. b5 {[%clk 0:01:19.4]} 13... Nd8 {[%clk 0:02:25.4]} 14. a4 {[%clk
0:01:16.3]} 14... Nxd5 {[%clk 0:02:25.1]} 15. cxd5 {[%clk 0:01:15.3]} 15... a6
{[%clk 0:02:21.4]} 16. Qb3 {[%clk 0:01:12.3]} 16... Nf7 {[%clk 0:02:19.5]} 17.
Bh3 {[%clk 0:01:04.9]} 17... Kh8 {[%clk 0:01:47.9]} 18. Nh4 {[%clk 0:01:03.6]}
18... Nh6 {[%clk 0:01:46.3]} 19. Bg5 {[%clk 0:00:59.3]} 19... axb5 {[%clk
0:01:20.5]} 20. axb5 {[%clk 0:00:58.3]} 20... Rxa1 {[%clk 0:01:06.7]} 21. Rxa1
{[%clk 0:00:58.3]} 21... Qf7 {[%clk 0:01:07.3]} 22. Qc2 {[%clk 0:00:31]} 22...
Bc8 {[%clk 0:01:06.1]} 23. Qd2 {[%clk 0:00:25.8]} 23... Ng8 {[%clk 0:01:03]} 24.
Ra8 {[%clk 0:00:12.3]} 24... h6 {[%clk 0:00:31]} 25. Be3 {[%clk 0:00:12.3]}
25... f4 {[%clk 0:00:10.6]} 26. Rxc8 {[%clk 0:00:11.1]} 26... Rxc8 {[%clk
0:00:09.6]} 27. Bxc8 {[%clk 0:00:09.7]} 27... fxe3 {[%clk 0:00:09.7]} 28. Qxe3
{[%clk 0:00:10.4]} 28... Ne7 {[%clk 0:00:10.1]} 29. Be6 {[%clk 0:00:09.8]} 29...
Qe8 {[%clk 0:00:10.2]} 30. Qf3 {[%clk 0:00:08.8]} 30... Qf8 {[%clk 0:00:08.2]}
31. Qf7 {[%clk 0:00:06.5]} 31... Qxf7 {[%clk 0:00:07.9]} 32. Bxf7 {[%clk
0:00:07.4]} 32... g5 {[%clk 0:00:07.9]} 33. Ng2 {[%clk 0:00:07.3]} 33... Bf8
{[%clk 0:00:05.8]} 34. Ne3 {[%clk 0:00:07.6]} 34... Nc8 {[%clk 0:00:06]} 35. Nc4
{[%clk 0:00:06.7]} 35... Kg7 {[%clk 0:00:05.7]} 36. Be6 {[%clk 0:00:07.2]} 36...
Na7 {[%clk 0:00:05.5]} 37. Bd7 {[%clk 0:00:07.8]} 37... Kf6 {[%clk 0:00:04.7]}
38. Nxb6 {[%clk 0:00:08.3]} 38... Ke7 {[%clk 0:00:05.3]} 39. Bc6 {[%clk
0:00:08.5]} 39... Kd8 {[%clk 0:00:05.3]} 40. Nc4 {[%clk 0:00:08.7]} 1-0

[Event "Early-Titled-Tuesday-Blitz-September-12-2023"]
[Site "Chess.com"]
[Date "2023.09.12"]
[Round "5"]
[White "LileKoridze"]
[Black "Alex_Banzea"]
[Result "1-0"]
[WhiteElo "2379"]
[BlackElo "2619"]
[TimeControl "180+1"]
[EndTime "8:55:18 PDT"]
[Termination "LileKoridze won on time"]

1. d4 {[%clk 0:03:00.9]} 1... d5 {[%clk 0:02:57.6]} 2. c4 {[%clk 0:03:00.9]}
2... e6 {[%clk 0:02:57.9]} 3. Nf3 {[%clk 0:03:00.9]} 3... Nf6 {[%clk 0:02:58.4]}
4. g3 {[%clk 0:03:01.1]} 4... Be7 {[%clk 0:02:58.6]} 5. Bg2 {[%clk 0:03:01.2]}
5... O-O {[%clk 0:02:59.3]} 6. O-O {[%clk 0:03:00.5]} 6... dxc4 {[%clk
0:02:59.9]} 7. Qc2 {[%clk 0:02:59.3]} 7... a6 {[%clk 0:02:57.6]} 8. a4 {[%clk
0:02:55.2]} 8... Bd7 {[%clk 0:02:56.7]} 9. Bg5 {[%clk 0:02:53.3]} 9... Bc6
{[%clk 0:02:56.5]} 10. Qxc4 {[%clk 0:02:22.5]} 10... Nbd7 {[%clk 0:02:54.3]} 11.
Nc3 {[%clk 0:02:20.6]} 11... h6 {[%clk 0:02:54.6]} 12. Bxf6 {[%clk 0:02:19.6]}
12... Nxf6 {[%clk 0:02:55.5]} 13. Ne5 {[%clk 0:02:13.9]} 13... Bxg2 {[%clk
0:02:50]} 14. Kxg2 {[%clk 0:02:13.6]} 14... c6 {[%clk 0:02:50.1]} 15. Rad1
{[%clk 0:02:01.5]} 15... a5 {[%clk 0:02:49.4]} 16. Qb3 {[%clk 0:01:59.5]} 16...
Qc7 {[%clk 0:02:41.3]} 17. e4 {[%clk 0:01:58.1]} 17... Rad8 {[%clk 0:02:35]} 18.
Nc4 {[%clk 0:01:56.7]} 18... Bb4 {[%clk 0:02:25.4]} 19. e5 {[%clk 0:01:51.4]}
19... Nd5 {[%clk 0:02:23.3]} 20. Ne4 {[%clk 0:01:51.3]} 20... Be7 {[%clk
0:02:13.1]} 21. Nc5 {[%clk 0:01:19.8]} 21... Nb4 {[%clk 0:02:01.5]} 22. Ne4
{[%clk 0:01:18]} 22... Rd5 {[%clk 0:01:43]} 23. Ncd6 {[%clk 0:01:15.2]} 23...
Bxd6 {[%clk 0:01:28.3]} 24. Nxd6 {[%clk 0:01:14.8]} 24... b6 {[%clk 0:01:12.2]}
25. Qc4 {[%clk 0:01:10.6]} 25... Qd7 {[%clk 0:01:01.8]} 26. f4 {[%clk
0:00:59.4]} 26... Rxd6 {[%clk 0:00:40.1]} 27. exd6 {[%clk 0:00:58.9]} 27... Qxd6
{[%clk 0:00:41]} 28. Rfe1 {[%clk 0:00:57.7]} 28... Rd8 {[%clk 0:00:30.6]} 29.
Re5 {[%clk 0:00:55.1]} 29... g6 {[%clk 0:00:29.5]} 30. Re2 {[%clk 0:00:48.5]}
30... c5 {[%clk 0:00:19.5]} 31. Red2 {[%clk 0:00:48.1]} 31... Qc6+ {[%clk
0:00:17.5]} 32. Kg1 {[%clk 0:00:42.6]} 32... Qe4 {[%clk 0:00:10.2]} 33. b3
{[%clk 0:00:39.2]} 33... Qe3+ {[%clk 0:00:05.1]} 34. Kg2 {[%clk 0:00:39]} 34...
cxd4 {[%clk 0:00:04.5]} 35. Rxd4 {[%clk 0:00:38.4]} 35... Nd5 {[%clk 0:00:03.8]}
36. Re4 {[%clk 0:00:31.8]} 36... Qc5 {[%clk 0:00:02.4]} 37. Qxc5 {[%clk
0:00:29]} 37... bxc5 {[%clk 0:00:03.3]} 38. Rc1 {[%clk 0:00:28.8]} 38... Rb8
{[%clk 0:00:03.2]} 39. Rxc5 {[%clk 0:00:28.5]} 39... Rxb3 {[%clk 0:00:03.5]} 40.
Rxa5 {[%clk 0:00:28.5]} 40... Rb2+ {[%clk 0:00:04]} 41. Kf1 {[%clk 0:00:27.6]}
41... g5 {[%clk 0:00:02.4]} 42. fxg5 {[%clk 0:00:25.9]} 42... hxg5 {[%clk
0:00:03.3]} 43. h4 {[%clk 0:00:26.4]} 43... gxh4 {[%clk 0:00:02.9]} 44. Rxh4
{[%clk 0:00:26.6]} 44... Kg7 {[%clk 0:00:03.2]} 45. Ra7 {[%clk 0:00:26.1]} 45...
Kg6 {[%clk 0:00:02.8]} 46. a5 {[%clk 0:00:25.2]} 46... f5 {[%clk 0:00:01.1]} 47.
a6 {[%clk 0:00:21.5]} 1-0

[Event "Early-Titled-Tuesday-Blitz-September-12-2023"]
[Site "Chess.com"]
[Date "2023.09.12"]
[Round "5"]
[White "Shuvalov"]
[Black "Arimin1329"]
[Result "1/2-1/2"]
[WhiteElo "2426"]
[BlackElo "2255"]
[TimeControl "180+1"]
[EndTime "8:55:19 PDT"]
[Termination "Game drawn - insufficient material"]

1. d4 {[%clk 0:03:00.9]} 1... d5 {[%clk 0:02:48.7]} 2. c4 {[%clk 0:03:01]} 2...
e6 {[%clk 0:02:48.8]} 3. Nf3 {[%clk 0:03:00.2]} 3... Nf6 {[%clk 0:02:48.8]} 4.
Nc3 {[%clk 0:03:00]} 4... c5 {[%clk 0:02:45.3]} 5. cxd5 {[%clk 0:02:59]} 5...
Nxd5 {[%clk 0:02:45.3]} 6. e4 {[%clk 0:02:58.1]} 6... Nxc3 {[%clk 0:02:45.6]} 7.
bxc3 {[%clk 0:02:59]} 7... cxd4 {[%clk 0:02:46]} 8. cxd4 {[%clk 0:02:59.5]} 8...
Bb4+ {[%clk 0:02:46.3]} 9. Bd2 {[%clk 0:03:00]} 9... Bxd2+ {[%clk 0:02:46.9]}
10. Qxd2 {[%clk 0:03:00.9]} 10... O-O {[%clk 0:02:47.1]} 11. h4 {[%clk
0:03:00.5]} 11... b6 {[%clk 0:02:42.9]} 12. h5 {[%clk 0:02:56.6]} 12... h6
{[%clk 0:02:41.5]} 13. Rh3 {[%clk 0:02:55.6]} 13... Bb7 {[%clk 0:02:38.8]} 14.
Bd3 {[%clk 0:02:54.4]} 14... Nc6 {[%clk 0:02:36.1]} 15. e5 {[%clk 0:02:45.4]}
15... Ne7 {[%clk 0:02:15.2]} 16. Rg3 {[%clk 0:02:41.2]} 16... Kh8 {[%clk
0:02:15.2]} 17. Qf4 {[%clk 0:02:34.2]} 17... Nf5 {[%clk 0:02:03.4]} 18. Bxf5
{[%clk 0:02:29.3]} 18... exf5 {[%clk 0:02:04.3]} 19. Rd1 {[%clk 0:02:21.1]}
19... Be4 {[%clk 0:01:46.6]} 20. Nh4 {[%clk 0:02:18.3]} 20... Qc8 {[%clk
0:01:30.1]} 21. f3 {[%clk 0:01:53.1]} 21... Qc3+ {[%clk 0:01:28.1]} 22. Kf2
{[%clk 0:01:47.2]} 22... Bc2 {[%clk 0:01:22.7]} 23. Rd2 {[%clk 0:01:36.5]} 23...
Rad8 {[%clk 0:01:19]} 24. d5 {[%clk 0:01:19.4]} 24... Rfe8 {[%clk 0:01:15.1]}
25. Qd4 {[%clk 0:01:11.7]} 25... Qxd4+ {[%clk 0:01:13.1]} 26. Rxd4 {[%clk
0:01:12.6]} 26... Rxe5 {[%clk 0:01:12.1]} 27. d6 {[%clk 0:01:11.7]} 27... Re6
{[%clk 0:01:08.4]} 28. d7 {[%clk 0:01:08.1]} 28... Re7 {[%clk 0:01:06.2]} 29. f4
{[%clk 0:01:08.3]} 29... Rexd7 {[%clk 0:01:03.8]} 30. Rxd7 {[%clk 0:01:08.1]}
30... Rxd7 {[%clk 0:01:04.7]} 31. Rc3 {[%clk 0:01:08.5]} 31... Be4 {[%clk
0:01:02.3]} 32. Nf3 {[%clk 0:01:06.5]} 32... Bxf3 {[%clk 0:01:00.3]} 33. Kxf3
{[%clk 0:01:05.3]} 33... g6 {[%clk 0:00:51.7]} 34. g4 {[%clk 0:00:57.6]} 34...
fxg4+ {[%clk 0:00:46.9]} 35. Kxg4 {[%clk 0:00:58.5]} 35... Kg7 {[%clk
0:00:47.5]} 36. Rc6 {[%clk 0:00:52.8]} 36... Rd2 {[%clk 0:00:44.9]} 37. a4
{[%clk 0:00:50.7]} 37... Rg2+ {[%clk 0:00:41.6]} 38. Kf3 {[%clk 0:00:49.5]}
38... Ra2 {[%clk 0:00:37.1]} 39. hxg6 {[%clk 0:00:45.4]} 39... Rxa4 {[%clk
0:00:34.2]} 40. gxf7 {[%clk 0:00:44.4]} 40... Kxf7 {[%clk 0:00:35.1]} 41. Rxh6
{[%clk 0:00:43.9]} 41... b5 {[%clk 0:00:32.9]} 42. Kg4 {[%clk 0:00:41.8]} 42...
b4 {[%clk 0:00:32.3]} 43. Kf5 {[%clk 0:00:39.5]} 43... Ra5+ {[%clk 0:00:31.7]}
44. Ke4 {[%clk 0:00:37.2]} 44... Rb5 {[%clk 0:00:31.4]} 45. Rh7+ {[%clk
0:00:33.6]} 45... Ke6 {[%clk 0:00:30]} 46. Rxa7 {[%clk 0:00:34.5]} 46... b3
{[%clk 0:00:29.9]} 47. Ra1 {[%clk 0:00:34.3]} 47... Kd6 {[%clk 0:00:25.6]} 48.
Rb1 {[%clk 0:00:32.6]} 48... Kc5 {[%clk 0:00:25.4]} 49. f5 {[%clk 0:00:27.2]}
49... Kc4 {[%clk 0:00:25.9]} 50. f6 {[%clk 0:00:25.7]} 50... Kc3 {[%clk
0:00:25.8]} 51. f7 {[%clk 0:00:24.6]} 51... Rb8 {[%clk 0:00:25.6]} 52. Ke5
{[%clk 0:00:24.8]} 52... Kc2 {[%clk 0:00:24.6]} 53. Rf1 {[%clk 0:00:21.7]} 53...
b2 {[%clk 0:00:24.1]} 54. Ke6 {[%clk 0:00:21.2]} 54... Rb6+ {[%clk 0:00:22.8]}
55. Ke7 {[%clk 0:00:20.5]} 55... Rb7+ {[%clk 0:00:23]} 56. Ke8 {[%clk
0:00:20.9]} 56... b1=Q {[%clk 0:00:21.7]} 57. Rxb1 {[%clk 0:00:20.3]} 57... Kxb1
{[%clk 0:00:22.6]} 58. f8=Q {[%clk 0:00:20.3]} 58... Rb8+ {[%clk 0:00:23.1]} 59.
Kf7 {[%clk 0:00:20.6]} 59... Rxf8+ {[%clk 0:00:24]} 60. Kxf8 {[%clk 0:00:21.1]}
1/2-1/2